[Event "Titled Tuesday Blitz April 11 Early 2023"]
[White "Zampronha, Wladimir Camilo"]
[Black "Baches Garcia, Guillermo"]
[WhiteFideId "2103087"]
[BlackFideId "2209764"]
[WhiteElo "2176"]
[BlackElo "2445"]
[Result "0-1"]
[Round "10"]
[TimeControl "180+2"]
[Date "2023.04.11"]
[WhiteClock "0:00:07"]
[BlackClock "0:00:05"]

1. e4 {[%clk 0:03:00]}  c5 {[%clk 0:03:00]} 2. Nf3 {[%clk 0:03:01]}  d6 {[%clk 0:03:00]} 3. d4 {[%clk 0:03:01]}  cxd4 {[%clk 0:03:01]} 4. Nxd4 {[%clk 0:03:01]}  Nf6 {[%clk 0:03:02]} 5. Nc3 {[%clk 0:03:02]}  Nc6 {[%clk 0:03:03]} 6. Bg5 {[%clk 0:03:01]}  e6 {[%clk 0:03:03]} 7. Qd2 {[%clk 0:03:01]}  h6 {[%clk 0:03:03]} 8. Bxf6 {[%clk 0:02:53]}  gxf6 {[%clk 0:03:04]} 9. O-O-O {[%clk 0:02:52]}  a6 {[%clk 0:03:04]} 10. Bc4 {[%clk 0:02:41]}  Bd7 {[%clk 0:03:01]} 11. Bb3 {[%clk 0:02:39]}  Qb6 {[%clk 0:02:58]} 12. Nxc6 {[%clk 0:02:31]}  Qxc6 {[%clk 0:02:58]} 13. Rhe1 {[%clk 0:02:27]}  Be7 {[%clk 0:02:51]} 14. Kb1 {[%clk 0:02:25]}  b5 {[%clk 0:02:43]} 15. Nd5 {[%clk 0:02:16]}  exd5 {[%clk 0:02:32]} 16. exd5 {[%clk 0:02:06]}  Qc7 {[%clk 0:02:24]} 17. Qf4 {[%clk 0:01:59]}  Kf8 {[%clk 0:02:16]} 18. Rxe7 {[%clk 0:01:59]}  Kxe7 {[%clk 0:02:03]} 19. Re1+ {[%clk 0:01:59]}  Kf8 {[%clk 0:01:57]} 20. Qxf6 {[%clk 0:02:00]}  Rh7 {[%clk 0:01:45]} 21. c3 {[%clk 0:01:38]}  Re8 {[%clk 0:01:39]} 22. Rxe8+ {[%clk 0:01:34]}  Bxe8 {[%clk 0:01:36]} 23. Bc2 {[%clk 0:01:35]}  Kg8 {[%clk 0:00:42]} 24. Bxh7+ {[%clk 0:01:33]}  Kxh7 {[%clk 0:00:41]} 25. Qf5+ {[%clk 0:01:32]}  Kg7 {[%clk 0:00:40]} 26. Qg4+ {[%clk 0:01:33]}  Kf8 {[%clk 0:00:40]} 27. Qf4 {[%clk 0:01:32]}  Qc5 {[%clk 0:00:24]} 28. Qxh6+ {[%clk 0:01:31]}  Ke7 {[%clk 0:00:25]} 29. Qg5+ {[%clk 0:01:30]}  f6 {[%clk 0:00:23]} 30. Qe3+ {[%clk 0:01:22]}  Qxe3 {[%clk 0:00:20]} 31. fxe3 {[%clk 0:01:23]}  Bg6+ {[%clk 0:00:20]} 32. Kc1 {[%clk 0:01:21]}  Be4 {[%clk 0:00:20]} 33. g3 {[%clk 0:01:19]}  Bxd5 {[%clk 0:00:19]} 34. a3 {[%clk 0:01:20]}  f5 {[%clk 0:00:19]} 35. Kd2 {[%clk 0:01:20]}  Kf6 {[%clk 0:00:19]} 36. Kd3 {[%clk 0:01:20]}  Kg5 {[%clk 0:00:18]} 37. Kd4 {[%clk 0:01:20]}  Be4 {[%clk 0:00:17]} 38. h3 {[%clk 0:01:16]}  Bg2 {[%clk 0:00:15]} 39. c4 {[%clk 0:01:15]}  bxc4 {[%clk 0:00:12]} 40. Kxc4 {[%clk 0:01:16]}  Bxh3 {[%clk 0:00:12]} 41. Kd5 {[%clk 0:01:16]}  Kg4 {[%clk 0:00:09]} 42. Kxd6 {[%clk 0:01:12]}  Kxg3 {[%clk 0:00:09]} 43. Ke5 {[%clk 0:01:12]}  Kf3 {[%clk 0:00:09]} 44. Kd4 {[%clk 0:01:10]}  Bf1 {[%clk 0:00:06]} 45. b4 {[%clk 0:01:10]}  Be2 {[%clk 0:00:06]} 46. a4 {[%clk 0:01:09]}  Bf1 {[%clk 0:00:05]} 47. Ke5 {[%clk 0:01:01]}  Bd3 {[%clk 0:00:05]} 48. Kd4 {[%clk 0:00:44]}  Be2 {[%clk 0:00:04]} 49. Ke5 {[%clk 0:00:43]}  Bd3 {[%clk 0:00:04]} 50. Kd4 {[%clk 0:00:43]}  Ke2 {[%clk 0:00:04]} 51. b5 {[%clk 0:00:10]}  Bxb5 {[%clk 0:00:04]} 52. axb5 {[%clk 0:00:09]}  axb5 {[%clk 0:00:04]} 53. Ke5 {[%clk 0:00:07]}  Kxe3 {[%clk 0:00:04]} 54. Kxf5 {[%clk 0:00:07]}  b4 {[%clk 0:00:05]} 0-1


[Site "https://www.chess.com"]

[Event "Titled Tuesday Blitz April 11 Early 2023"]
[White "morozcoma"]
[Black "Mordechai, Hanan"]
[BlackFideId "2804166"]
[WhiteElo "2284"]
[BlackElo "2324"]
[Result "1-0"]
[Round "10"]
[TimeControl "180+2"]
[Date "2023.04.11"]
[WhiteClock "0:00:19"]
[BlackClock "0:00:13"]

1. e4 {[%clk 0:03:00]}  c5 {[%clk 0:02:57]} 2. Nf3 {[%clk 0:02:59]}  e6 {[%clk 0:02:57]} 3. Nc3 {[%clk 0:02:59]}  a6 {[%clk 0:02:57]} 4. d4 {[%clk 0:03:00]}  cxd4 {[%clk 0:02:58]} 5. Nxd4 {[%clk 0:03:00]}  b5 {[%clk 0:02:58]} 6. Nb3 {[%clk 0:03:00]}  Bb7 {[%clk 0:02:58]} 7. Bd3 {[%clk 0:03:01]}  Nc6 {[%clk 0:02:51]} 8. f4 {[%clk 0:03:01]}  Nf6 {[%clk 0:02:39]} 9. Qf3 {[%clk 0:03:01]}  Be7 {[%clk 0:02:31]} 10. O-O {[%clk 0:03:00]}  b4 {[%clk 0:02:27]} 11. Ne2 {[%clk 0:02:56]}  d5 {[%clk 0:02:27]} 12. e5 {[%clk 0:02:55]}  Ne4 {[%clk 0:02:13]} 13. Bxe4 {[%clk 0:02:52]}  dxe4 {[%clk 0:02:14]} 14. Qxe4 {[%clk 0:02:52]}  O-O {[%clk 0:02:15]} 15. Qf3 {[%clk 0:02:49]}  a5 {[%clk 0:02:08]} 16. Qg3 {[%clk 0:02:47]}  a4 {[%clk 0:02:07]} 17. Nd2 {[%clk 0:02:47]}  Nd4 {[%clk 0:02:02]} 18. Nxd4 {[%clk 0:02:27]}  Qxd4+ {[%clk 0:02:03]} 19. Qf2 {[%clk 0:02:26]}  Qd5 {[%clk 0:02:00]} 20. Nf3 {[%clk 0:02:20]}  Bc5 {[%clk 0:01:59]} 21. Be3 {[%clk 0:02:21]}  Be7 {[%clk 0:01:50]} 22. Rfd1 {[%clk 0:02:19]}  Qc4 {[%clk 0:01:50]} 23. Rd4 {[%clk 0:02:17]}  Qc6 {[%clk 0:01:48]} 24. Rd2 {[%clk 0:02:10]}  Rac8 {[%clk 0:01:47]} 25. Rad1 {[%clk 0:02:10]}  Qe4 {[%clk 0:01:42]} 26. Nd4 {[%clk 0:01:55]}  h6 {[%clk 0:01:39]} 27. Qf3 {[%clk 0:01:55]}  Rfd8 {[%clk 0:01:14]} 28. Qxe4 {[%clk 0:01:32]}  Bxe4 {[%clk 0:01:15]} 29. Kf2 {[%clk 0:01:32]}  a3 {[%clk 0:01:14]} 30. b3 {[%clk 0:01:26]}  Rc3 {[%clk 0:01:04]} 31. Rc1 {[%clk 0:00:54]}  Bc5 {[%clk 0:00:53]} 32. g3 {[%clk 0:00:48]}  f6 {[%clk 0:00:35]} 33. exf6 {[%clk 0:00:46]}  gxf6 {[%clk 0:00:35]} 34. Rcd1 {[%clk 0:00:46]}  Kf7 {[%clk 0:00:31]} 35. Re1 {[%clk 0:00:32]}  e5 {[%clk 0:00:29]} 36. fxe5 {[%clk 0:00:32]}  fxe5 {[%clk 0:00:29]} 37. Nf3 {[%clk 0:00:31]}  Rxd2+ {[%clk 0:00:24]} 38. Nxd2 {[%clk 0:00:30]}  Bxc2 {[%clk 0:00:18]} 39. Bxc5 {[%clk 0:00:25]}  Rxc5 {[%clk 0:00:19]} 40. Nc4 {[%clk 0:00:25]}  e4 {[%clk 0:00:19]} 41. Ke3 {[%clk 0:00:24]}  Bd3 {[%clk 0:00:20]} 42. Kd4 {[%clk 0:00:24]}  Rc8 {[%clk 0:00:19]} 43. Ne5+ {[%clk 0:00:25]}  Ke6 {[%clk 0:00:19]} 44. Nxd3 {[%clk 0:00:26]}  Kd6 {[%clk 0:00:14]} 45. Rxe4 {[%clk 0:00:25]}  Rc2 {[%clk 0:00:14]} 46. Nxb4 {[%clk 0:00:25]}  Rxh2 {[%clk 0:00:14]} 47. Rh4 {[%clk 0:00:24]}  Rg2 {[%clk 0:00:13]} 48. Rxh6+ {[%clk 0:00:24]}  Kd7 {[%clk 0:00:14]} 49. Ra6 {[%clk 0:00:24]}  Rxg3 {[%clk 0:00:14]} 50. Rxa3 {[%clk 0:00:25]}  Rg1 {[%clk 0:00:15]} 51. Nd3 {[%clk 0:00:25]}  Rg4+ {[%clk 0:00:14]} 52. Kd5 {[%clk 0:00:24]}  Kc8 {[%clk 0:00:15]} 53. Ne5 {[%clk 0:00:24]}  Rg1 {[%clk 0:00:14]} 54. Kc6 {[%clk 0:00:23]}  Rc1+ {[%clk 0:00:14]} 55. Nc4 {[%clk 0:00:24]}  Kb8 {[%clk 0:00:14]} 56. Kb6 {[%clk 0:00:24]}  Rh1 {[%clk 0:00:14]} 57. Ra5 {[%clk 0:00:22]}  Rh6+ {[%clk 0:00:15]} 58. Kc5 {[%clk 0:00:21]}  Rh5+ {[%clk 0:00:15]} 59. Kc6 {[%clk 0:00:21]}  Rh6+ {[%clk 0:00:16]} 60. Nd6 {[%clk 0:00:21]}  Rh3 {[%clk 0:00:14]} 61. b4 {[%clk 0:00:21]}  Rb3 {[%clk 0:00:13]} 62. Rb5+ {[%clk 0:00:19]} 1-0


[Site "https://www.chess.com"]

[Event "Titled Tuesday Blitz April 11 Early 2023"]
[White "mjelcic"]
[Black "Smith, Garrett L"]
[BlackFideId "2024829"]
[WhiteElo "2264"]
[BlackElo "2330"]
[Result "1-0"]
[Round "10"]
[TimeControl "180+2"]
[Date "2023.04.11"]
[WhiteClock "0:00:09"]
[BlackClock "0:00:07"]

1. c4 {[%clk 0:03:00]}  c5 {[%clk 0:02:59]} 2. Nc3 {[%clk 0:02:59]}  Nc6 {[%clk 0:02:59]} 3. g3 {[%clk 0:02:59]}  e5 {[%clk 0:02:59]} 4. Bg2 {[%clk 0:02:58]}  Nf6 {[%clk 0:03:00]} 5. e4 {[%clk 0:02:57]}  d6 {[%clk 0:02:59]} 6. Nge2 {[%clk 0:02:57]}  Be7 {[%clk 0:02:57]} 7. O-O {[%clk 0:02:57]}  Nd4 {[%clk 0:02:55]} 8. d3 {[%clk 0:02:56]}  a6 {[%clk 0:02:54]} 9. f4 {[%clk 0:02:52]}  Rb8 {[%clk 0:02:46]} 10. Nxd4 {[%clk 0:02:51]}  cxd4 {[%clk 0:02:45]} 11. Nd5 {[%clk 0:02:52]}  Nxd5 {[%clk 0:02:32]} 12. exd5 {[%clk 0:02:45]}  Bf6 {[%clk 0:02:22]} 13. fxe5 {[%clk 0:02:35]}  dxe5 {[%clk 0:02:22]} 14. b3 {[%clk 0:02:18]}  O-O {[%clk 0:02:22]} 15. Ba3 {[%clk 0:02:16]}  Re8 {[%clk 0:02:19]} 16. Be4 {[%clk 0:02:16]}  h6 {[%clk 0:02:02]} 17. Qf3 {[%clk 0:02:11]}  Qd7 {[%clk 0:01:57]} 18. Rae1 {[%clk 0:02:09]}  Qg4 {[%clk 0:01:52]} 19. Bc1 {[%clk 0:02:01]}  Qxf3 {[%clk 0:01:50]} 20. Rxf3 {[%clk 0:02:02]}  Bd8 {[%clk 0:01:41]} 21. Ref1 {[%clk 0:01:59]}  f6 {[%clk 0:01:39]} 22. h4 {[%clk 0:01:51]}  Bb6 {[%clk 0:01:28]} 23. Bg6 {[%clk 0:01:48]}  Rd8 {[%clk 0:01:25]} 24. Be4 {[%clk 0:01:38]}  Bg4 {[%clk 0:01:23]} 25. R3f2 {[%clk 0:01:38]}  Bc5 {[%clk 0:01:22]} 26. Kg2 {[%clk 0:01:37]}  b5 {[%clk 0:01:20]} 27. Bxh6 {[%clk 0:01:23]}  bxc4 {[%clk 0:01:14]} 28. Bxg7 {[%clk 0:01:12]}  Kxg7 {[%clk 0:01:08]} 29. Rxf6 {[%clk 0:01:12]}  Rd6 {[%clk 0:01:01]} 30. Rf7+ {[%clk 0:01:10]}  Kg8 {[%clk 0:01:01]} 31. dxc4 {[%clk 0:01:05]}  Rh6 {[%clk 0:00:57]} 32. Rc7 {[%clk 0:01:01]}  Bb6 {[%clk 0:00:54]} 33. Re7 {[%clk 0:01:00]}  Be2 {[%clk 0:00:52]} 34. Rff7 {[%clk 0:00:56]}  d3 {[%clk 0:00:47]} 35. d6 {[%clk 0:00:37]}  d2 {[%clk 0:00:45]} 36. d7 {[%clk 0:00:34]}  d1=Q {[%clk 0:00:31]} 37. Bd5 {[%clk 0:00:18]}  Qg1+ {[%clk 0:00:18]} 38. Kh3 {[%clk 0:00:17]}  Rxh4+ {[%clk 0:00:17]} 39. Kxh4 {[%clk 0:00:14]}  Qh2+ {[%clk 0:00:17]} 40. Kg5 {[%clk 0:00:13]}  Qh5+ {[%clk 0:00:16]} 41. Kf6 {[%clk 0:00:12]}  Qh6+ {[%clk 0:00:11]} 42. Kf5 {[%clk 0:00:11]}  Bd3+ {[%clk 0:00:10]} 43. Kg4 {[%clk 0:00:10]}  Kh8 {[%clk 0:00:07]} 44. Re8+ {[%clk 0:00:09]} 1-0


[Site "https://www.chess.com"]

[Event "Titled Tuesday Blitz April 11 Early 2023"]
[White "Van Osch, Mees"]
[Black "Skaric, Djuro"]
[WhiteFideId "1035967"]
[BlackFideId "934569"]
[WhiteElo "2324"]
[BlackElo "2282"]
[Result "0-1"]
[Round "10"]
[TimeControl "180+2"]
[Date "2023.04.11"]
[WhiteClock "0:00:06"]
[BlackClock "0:00:23"]

1. e4 {[%clk 0:02:41]}  d6 {[%clk 0:03:00]} 2. d4 {[%clk 0:02:39]}  g6 {[%clk 0:03:01]} 3. h4 {[%clk 0:02:38]}  Bg7 {[%clk 0:03:02]} 4. h5 {[%clk 0:02:39]}  gxh5 {[%clk 0:03:02]} 5. Nc3 {[%clk 0:02:35]}  Nc6 {[%clk 0:03:01]} 6. d5 {[%clk 0:02:35]}  Ne5 {[%clk 0:03:00]} 7. Qxh5 {[%clk 0:02:30]}  Bg4 {[%clk 0:02:57]} 8. Qg5 {[%clk 0:02:30]}  Bf6 {[%clk 0:02:56]} 9. Qf4 {[%clk 0:02:28]}  h6 {[%clk 0:02:52]} 10. Bb5+ {[%clk 0:02:26]}  c6 {[%clk 0:02:51]} 11. dxc6 {[%clk 0:02:26]}  bxc6 {[%clk 0:02:51]} 12. Bxc6+ {[%clk 0:02:26]}  Nxc6 {[%clk 0:02:42]} 13. Qxg4 {[%clk 0:02:26]}  Bxc3+ {[%clk 0:02:42]} 14. bxc3 {[%clk 0:02:26]}  Nf6 {[%clk 0:02:40]} 15. Qf5 {[%clk 0:02:10]}  Qa5 {[%clk 0:02:35]} 16. Qxa5 {[%clk 0:02:07]}  Nxa5 {[%clk 0:02:35]} 17. Rxh6 {[%clk 0:02:07]}  Rxh6 {[%clk 0:02:34]} 18. Bxh6 {[%clk 0:02:08]}  Nxe4 {[%clk 0:02:35]} 19. Ne2 {[%clk 0:02:08]}  Rc8 {[%clk 0:02:34]} 20. Bd2 {[%clk 0:02:06]}  Nc4 {[%clk 0:02:32]} 21. Bc1 {[%clk 0:02:01]}  Rb8 {[%clk 0:02:31]} 22. f3 {[%clk 0:02:00]}  Nf6 {[%clk 0:02:27]} 23. Nd4 {[%clk 0:01:57]}  a5 {[%clk 0:02:24]} 24. Ke2 {[%clk 0:01:48]}  Kd7 {[%clk 0:02:24]} 25. a4 {[%clk 0:01:32]}  Nd5 {[%clk 0:02:23]} 26. Nb5 {[%clk 0:01:29]}  Rh8 {[%clk 0:02:18]} 27. Kd3 {[%clk 0:01:20]}  Ne5+ {[%clk 0:02:07]} 28. Kd4 {[%clk 0:01:18]}  Nb6 {[%clk 0:02:06]} 29. Bf4 {[%clk 0:01:04]}  Nc6+ {[%clk 0:02:05]} 30. Kd3 {[%clk 0:01:01]}  e5 {[%clk 0:01:55]} 31. Be3 {[%clk 0:00:58]}  Nd5 {[%clk 0:01:49]} 32. c4 {[%clk 0:00:59]}  Ndb4+ {[%clk 0:01:47]} 33. Kd2 {[%clk 0:00:57]}  Rh4 {[%clk 0:01:46]} 34. c3 {[%clk 0:00:55]}  Na6 {[%clk 0:01:45]} 35. Kd3 {[%clk 0:00:54]}  f5 {[%clk 0:01:45]} 36. Rd1 {[%clk 0:00:52]}  e4+ {[%clk 0:01:24]} 37. Ke2 {[%clk 0:00:39]}  exf3+ {[%clk 0:01:23]} 38. gxf3 {[%clk 0:00:39]}  Rxc4 {[%clk 0:01:22]} 39. Nxd6 {[%clk 0:00:34]}  Rxa4 {[%clk 0:01:22]} 40. Nxf5+ {[%clk 0:00:31]}  Kc7 {[%clk 0:01:18]} 41. Nd4 {[%clk 0:00:26]}  Ne7 {[%clk 0:01:07]} 42. Bf4+ {[%clk 0:00:20]}  Kb7 {[%clk 0:01:06]} 43. Nb3 {[%clk 0:00:17]}  Rxf4 {[%clk 0:00:50]} 44. Rd7+ {[%clk 0:00:16]}  Kb6 {[%clk 0:00:49]} 45. Rxe7 {[%clk 0:00:17]}  a4 {[%clk 0:00:48]} 46. Re6+ {[%clk 0:00:18]}  Ka7 {[%clk 0:00:43]} 47. Nd4 {[%clk 0:00:18]}  Rh4 {[%clk 0:00:38]} 48. Ke3 {[%clk 0:00:17]}  Nc5 {[%clk 0:00:35]} 49. Re7+ {[%clk 0:00:17]}  Kb6 {[%clk 0:00:35]} 50. Re8 {[%clk 0:00:16]}  a3 {[%clk 0:00:33]} 51. Rb8+ {[%clk 0:00:16]}  Nb7 {[%clk 0:00:32]} 52. Ra8 {[%clk 0:00:15]}  Na5 {[%clk 0:00:31]} 53. Nb3 {[%clk 0:00:15]}  Nxb3 {[%clk 0:00:31]} 54. Rb8+ {[%clk 0:00:12]}  Kc5 {[%clk 0:00:30]} 55. Rxb3 {[%clk 0:00:13]}  Ra4 {[%clk 0:00:30]} 56. Rb1 {[%clk 0:00:13]}  a2 {[%clk 0:00:30]} 57. Ra1 {[%clk 0:00:13]}  Kc4 {[%clk 0:00:31]} 58. Kd2 {[%clk 0:00:13]}  Kb3 {[%clk 0:00:31]} 59. f4 {[%clk 0:00:07]}  Kb2 {[%clk 0:00:25]} 60. Rxa2+ {[%clk 0:00:06]}  Kxa2 {[%clk 0:00:24]} 61. Ke3 {[%clk 0:00:05]}  Kb3 {[%clk 0:00:24]} 62. f5 {[%clk 0:00:05]}  Kxc3 {[%clk 0:00:24]} 63. f6 {[%clk 0:00:06]}  Ra6 {[%clk 0:00:24]} 64. f7 {[%clk 0:00:06]}  Rf6 {[%clk 0:00:23]} 0-1


[Site "https://www.chess.com"]

[Event "Titled Tuesday Blitz April 11 Early 2023"]
[White "Tarasova, Viktoriya"]
[Black "Chabris, Christopher"]
[WhiteFideId "4175840"]
[BlackFideId "2005263"]
[WhiteElo "2182"]
[BlackElo "2280"]
[Result "1-0"]
[Round "10"]
[TimeControl "180+2"]
[Date "2023.04.11"]
[WhiteClock "0:00:02"]
[BlackClock "0:00:05"]

1. d4 {[%clk 0:02:55]}  Nf6 {[%clk 0:02:59]} 2. c4 {[%clk 0:02:53]}  e6 {[%clk 0:02:59]} 3. Nc3 {[%clk 0:02:52]}  Bb4 {[%clk 0:02:58]} 4. Nf3 {[%clk 0:02:52]}  Bxc3+ {[%clk 0:02:58]} 5. bxc3 {[%clk 0:02:52]}  d6 {[%clk 0:02:57]} 6. Qc2 {[%clk 0:02:52]}  O-O {[%clk 0:02:54]} 7. e4 {[%clk 0:02:52]}  e5 {[%clk 0:02:53]} 8. Bd3 {[%clk 0:02:48]}  Nc6 {[%clk 0:02:47]} 9. Rb1 {[%clk 0:02:40]}  b6 {[%clk 0:02:43]} 10. O-O {[%clk 0:02:39]}  Re8 {[%clk 0:02:42]} 11. a3 {[%clk 0:02:36]}  h6 {[%clk 0:02:34]} 12. Bb2 {[%clk 0:02:35]}  Na5 {[%clk 0:02:33]} 13. Rfe1 {[%clk 0:02:34]}  Qd7 {[%clk 0:02:30]} 14. Nd2 {[%clk 0:02:28]}  Ba6 {[%clk 0:02:17]} 15. Qd1 {[%clk 0:02:09]}  c5 {[%clk 0:02:00]} 16. d5 {[%clk 0:02:08]}  Rac8 {[%clk 0:01:44]} 17. f3 {[%clk 0:02:05]}  Bb7 {[%clk 0:01:40]} 18. Nb3 {[%clk 0:02:02]}  Nxb3 {[%clk 0:01:30]} 19. Qxb3 {[%clk 0:02:01]}  Nh5 {[%clk 0:01:28]} 20. g3 {[%clk 0:01:58]}  Qe7 {[%clk 0:01:26]} 21. Bc1 {[%clk 0:01:56]}  g5 {[%clk 0:01:20]} 22. a4 {[%clk 0:01:51]}  Rb8 {[%clk 0:01:19]} 23. a5 {[%clk 0:01:46]}  Bc8 {[%clk 0:01:06]} 24. axb6 {[%clk 0:01:41]}  axb6 {[%clk 0:01:05]} 25. Be2 {[%clk 0:01:33]}  Nf6 {[%clk 0:00:45]} 26. Be3 {[%clk 0:01:27]}  Kg7 {[%clk 0:00:43]} 27. Qd1 {[%clk 0:01:17]}  g4 {[%clk 0:00:41]} 28. fxg4 {[%clk 0:01:04]}  Nxe4 {[%clk 0:00:39]} 29. Qd3 {[%clk 0:01:01]}  Ng5 {[%clk 0:00:30]} 30. h4 {[%clk 0:00:54]}  e4 {[%clk 0:00:22]} 31. Qd2 {[%clk 0:00:49]}  Qe5 {[%clk 0:00:13]} 32. Bf4 {[%clk 0:00:48]}  Nh3+ {[%clk 0:00:13]} 33. Kh2 {[%clk 0:00:33]}  Nxf4 {[%clk 0:00:13]} 34. gxf4 {[%clk 0:00:33]}  Qf6 {[%clk 0:00:13]} 35. Kg3 {[%clk 0:00:25]}  e3 {[%clk 0:00:12]} 36. Qd3 {[%clk 0:00:20]}  h5 {[%clk 0:00:11]} 37. Bf3 {[%clk 0:00:04]}  hxg4 {[%clk 0:00:11]} 38. Bxg4 {[%clk 0:00:04]}  Bxg4 {[%clk 0:00:10]} 39. Kxg4 {[%clk 0:00:05]}  Rg8 {[%clk 0:00:08]} 40. Kh3 {[%clk 0:00:04]}  Rbe8 {[%clk 0:00:07]} 41. Rxe3 {[%clk 0:00:04]}  Kh6 {[%clk 0:00:07]} 42. Rbe1 {[%clk 0:00:03]}  Qg7 {[%clk 0:00:06]} 43. Qe2 {[%clk 0:00:02]}  Qg4+ {[%clk 0:00:05]} 44. Qxg4 {[%clk 0:00:02]} 1-0


[Site "https://www.chess.com"]

[Event "Titled Tuesday Blitz April 11 Early 2023"]
[White "Krzywda, Andrzej"]
[Black "lluiss"]
[WhiteFideId "1114565"]
[WhiteElo "2155"]
[BlackElo "2266"]
[Result "0-1"]
[Round "10"]
[TimeControl "180+2"]
[Date "2023.04.11"]
[WhiteClock "0:00:04"]
[BlackClock "0:00:02"]

1. e4 {[%clk 0:02:51]}  c5 {[%clk 0:02:59]} 2. Nf3 {[%clk 0:02:51]}  d6 {[%clk 0:02:59]} 3. d4 {[%clk 0:02:51]}  cxd4 {[%clk 0:03:00]} 4. Nxd4 {[%clk 0:02:52]}  Nf6 {[%clk 0:03:00]} 5. Nc3 {[%clk 0:02:52]}  g6 {[%clk 0:03:00]} 6. Be3 {[%clk 0:02:52]}  Bg7 {[%clk 0:03:01]} 7. f3 {[%clk 0:02:52]}  O-O {[%clk 0:03:01]} 8. Qd2 {[%clk 0:02:53]}  Nc6 {[%clk 0:03:01]} 9. O-O-O {[%clk 0:02:53]}  d5 {[%clk 0:03:00]} 10. exd5 {[%clk 0:02:50]}  Nxd5 {[%clk 0:02:58]} 11. Nxc6 {[%clk 0:02:50]}  bxc6 {[%clk 0:02:58]} 12. Bd4 {[%clk 0:02:48]}  Bxd4 {[%clk 0:02:56]} 13. Qxd4 {[%clk 0:02:48]}  Qb6 {[%clk 0:02:57]} 14. Na4 {[%clk 0:02:44]}  Qc7 {[%clk 0:02:52]} 15. g3 {[%clk 0:02:35]}  e5 {[%clk 0:02:50]} 16. Qc5 {[%clk 0:02:26]}  Be6 {[%clk 0:02:39]} 17. Bc4 {[%clk 0:02:22]}  Nb6 {[%clk 0:02:20]} 18. Bb3 {[%clk 0:01:56]}  Rad8 {[%clk 0:01:40]} 19. Qc3 {[%clk 0:01:21]}  Nxa4 {[%clk 0:01:24]} 20. Bxa4 {[%clk 0:01:20]}  c5 {[%clk 0:01:19]} 21. Rhe1 {[%clk 0:01:13]}  Rd4 {[%clk 0:01:08]} 22. b3 {[%clk 0:01:05]}  Rfd8 {[%clk 0:01:06]} 23. Rd3 {[%clk 0:00:35]}  Bf5 {[%clk 0:00:58]} 24. Rde3 {[%clk 0:00:31]}  f6 {[%clk 0:00:32]} 25. Bb5 {[%clk 0:00:31]}  Qd6 {[%clk 0:00:29]} 26. Bc4+ {[%clk 0:00:31]}  Kg7 {[%clk 0:00:28]} 27. Kb2 {[%clk 0:00:28]}  Rd2 {[%clk 0:00:26]} 28. R3e2 {[%clk 0:00:27]}  Rxe2 {[%clk 0:00:22]} 29. Rxe2 {[%clk 0:00:27]}  Qd4 {[%clk 0:00:21]} 30. g4 {[%clk 0:00:25]}  Bc8 {[%clk 0:00:16]} 31. g5 {[%clk 0:00:19]}  Bb7 {[%clk 0:00:15]} 32. gxf6+ {[%clk 0:00:19]}  Kxf6 {[%clk 0:00:15]} 33. f4 {[%clk 0:00:11]}  Qxc3+ {[%clk 0:00:13]} 34. Kxc3 {[%clk 0:00:12]}  exf4 {[%clk 0:00:13]} 35. Re6+ {[%clk 0:00:11]}  Kg5 {[%clk 0:00:13]} 36. Re7 {[%clk 0:00:11]}  Bg2 {[%clk 0:00:09]} 37. Rxa7 {[%clk 0:00:05]}  Rf8 {[%clk 0:00:08]} 38. Rxh7 {[%clk 0:00:03]}  f3 {[%clk 0:00:08]} 39. a4 {[%clk 0:00:03]}  f2 {[%clk 0:00:08]} 40. a5 {[%clk 0:00:03]}  f1=Q {[%clk 0:00:08]} 41. Bxf1 {[%clk 0:00:04]}  Bxf1 {[%clk 0:00:08]} 42. Rc7 {[%clk 0:00:02]}  Rf5 {[%clk 0:00:07]} 43. Rc6 {[%clk 0:00:01]}  c4 {[%clk 0:00:05]} 44. h4+ {[%clk 0:00:02]}  Kh5 {[%clk 0:00:04]} 45. a6 {[%clk 0:00:03]}  cxb3 {[%clk 0:00:02]} 46. cxb3 {[%clk 0:00:04]}  Ra5 {[%clk 0:00:02]} 0-1


[Site "https://www.chess.com"]

[Event "Titled Tuesday Blitz April 11 Early 2023"]
[White "Fuzesabonyilaci"]
[Black "FuenfgegenWilly"]
[WhiteElo "2339"]
[BlackElo "2243"]
[Result "0-1"]
[Round "10"]
[TimeControl "180+2"]
[Date "2023.04.11"]
[WhiteClock "0:00:03"]
[BlackClock "0:01:12"]

1. g3 {[%clk 0:03:00]}  h5 {[%clk 0:02:59]} 2. Bg2 {[%clk 0:03:01]}  h4 {[%clk 0:02:59]} 3. e4 {[%clk 0:02:59]}  d6 {[%clk 0:02:58]} 4. d4 {[%clk 0:02:57]}  Nf6 {[%clk 0:02:54]} 5. Nc3 {[%clk 0:02:56]}  a6 {[%clk 0:02:46]} 6. Bg5 {[%clk 0:02:56]}  h3 {[%clk 0:02:45]} 7. Bf3 {[%clk 0:02:55]}  Nbd7 {[%clk 0:02:35]} 8. Qd2 {[%clk 0:02:50]}  c5 {[%clk 0:02:34]} 9. O-O-O {[%clk 0:02:48]}  cxd4 {[%clk 0:02:33]} 10. Qxd4 {[%clk 0:02:48]}  e6 {[%clk 0:02:28]} 11. Bg4 {[%clk 0:02:21]}  Qa5 {[%clk 0:02:21]} 12. Bxf6 {[%clk 0:02:20]}  Nxf6 {[%clk 0:02:21]} 13. Bxh3 {[%clk 0:02:20]}  e5 {[%clk 0:02:21]} 14. Qc4 {[%clk 0:01:53]}  Bxh3 {[%clk 0:02:13]} 15. Nxh3 {[%clk 0:01:52]}  Rxh3 {[%clk 0:02:14]} 16. f4 {[%clk 0:01:28]}  Qc5 {[%clk 0:02:10]} 17. Qb3 {[%clk 0:01:24]}  b5 {[%clk 0:02:04]} 18. Kb1 {[%clk 0:01:22]}  Be7 {[%clk 0:02:02]} 19. a3 {[%clk 0:01:15]}  Rc8 {[%clk 0:02:01]} 20. Rd2 {[%clk 0:01:14]}  Qc4 {[%clk 0:02:00]} 21. Qxc4 {[%clk 0:00:51]}  Rxc4 {[%clk 0:02:01]} 22. Re1 {[%clk 0:00:49]}  Ng4 {[%clk 0:01:57]} 23. Nd5 {[%clk 0:00:45]}  Nxh2 {[%clk 0:01:47]} 24. Rd3 {[%clk 0:00:14]}  Ng4 {[%clk 0:01:36]} 25. b3 {[%clk 0:00:14]}  Rc6 {[%clk 0:01:27]} 26. f5 {[%clk 0:00:15]}  Rh2 {[%clk 0:01:22]} 27. Nb4 {[%clk 0:00:15]}  Rb6 {[%clk 0:01:21]} 28. Nd5 {[%clk 0:00:14]}  Rb7 {[%clk 0:01:19]} 29. Rc3 {[%clk 0:00:15]}  Kd7 {[%clk 0:01:17]} 30. Rd1 {[%clk 0:00:15]}  Nf6 {[%clk 0:01:15]} 31. Nxe7 {[%clk 0:00:13]}  Kxe7 {[%clk 0:01:15]} 32. Rc6 {[%clk 0:00:13]}  Nxe4 {[%clk 0:01:15]} 33. Kb2 {[%clk 0:00:13]}  a5 {[%clk 0:01:14]} 34. Ra6 {[%clk 0:00:13]}  a4 {[%clk 0:01:13]} 35. b4 {[%clk 0:00:12]}  Nd2 {[%clk 0:01:12]} 36. Kc3 {[%clk 0:00:11]}  Nc4 {[%clk 0:01:13]} 37. f6+ {[%clk 0:00:08]}  gxf6 {[%clk 0:01:12]} 38. Rc6 {[%clk 0:00:08]}  Rg2 {[%clk 0:01:11]} 39. Rd3 {[%clk 0:00:07]}  Nxa3 {[%clk 0:01:11]} 40. Rdxd6 {[%clk 0:00:03]}  Rxc2+ {[%clk 0:01:11]} 41. Kd3 {[%clk 0:00:03]}  Rxc6 {[%clk 0:01:12]} 42. Rxc6 {[%clk 0:00:03]}  Nc4 {[%clk 0:01:12]} 43. Rc5 {[%clk 0:00:03]}  a3 {[%clk 0:01:12]} 44. Rc7+ {[%clk 0:00:03]}  Rxc7 {[%clk 0:01:12]} 0-1


[Site "https://www.chess.com"]